bitfinex/quotes_ETHUSD_20240822
["timestamp","ask_amount","ask_price","bid_price","bid_amount"]
[1724308066391,7.44,2628.2,2628.1,1.89928352]
[1724308068423,10.89986314,2628.5,2628.1,2.44928352]
[1724308068559,10.89986314,2628.5,2628.2,0.59528352]
[1724308068759,10.89986314,2628.5,2628.3,0.59528352]
[1724308069010,1.19836314,2628.5,2628.1,11.4684]
[1724308069218,1.19836314,2628.5,2628.1,12.995771]
[1724308069366,1.19836314,2628.6,2628.1,12.995771]
[1724308071456,11.18436314,2628.7,2628.1,12.995771]
[1724308071762,11.18436314,2628.7,2628.5,1.304]
[1724308071962,5.79919667,2628.9,2628.5,1.304]
[1724308071963,10.81896314,2628.9,2628.5,1.304]
[1724308072164,1.59674352,2629.0,2628.7,1.304]
[1724308072165,1.19836314,2629.0,2628.7,1.304]
[1724308072371,9.9418,2629.1,2628.7,1.304]
[1724308072610,9.9418,2629.1,2628.9,1.304]
[1724308072770,1.59674352,2629.4,2628.9,1.304]
[1724308072771,11.14016314,2629.3,2628.9,1.304]
[1724308073084,11.87967316,2629.3,2628.9,1.304]
[1724308073506,10.68131002,2629.3,2628.9,1.304]
[1724308073710,10.68131002,2629.3,2628.6,3.0]
[1724308073941,15.68303316,2629.3,2628.6,4.304]
[1724308074112,1.26465355,2629.2,2628.6,4.304]
[1724308074399,9.8853,2629.0,2628.6,4.304]
[1724308074720,9.8853,2629.0,2628.7,3.0]
[1724308075024,0.04434388,2628.9,2628.6,1.304]
[1724308077574,0.04434388,2628.9,2628.4,3.0]
[1724308077786,0.12103011,2628.9,2628.4,4.304]
[1724308078019,9.51,2628.8,2628.4,3.0]
[1724308078240,9.51,2628.8,2628.2,1.304]
[1724308078241,0.07668623,2628.7,2628.2,1.304]
[1724308078517,0.04427659,2628.6,2628.4,1.304]
[1724308079268,0.07668623,2628.7,2628.4,1.304]
[1724308079574,0.07668623,2628.7,2628.2,1.304]
[1724308079575,0.04470935,2628.6,2628.2,1.304]
[1724308080717,0.04470935,2628.6,2628.4,1.304]
[1724308082643,9.51,2628.8,2628.4,1.304]
[1724308082810,0.04466568,2628.5,2628.4,1.304]
[1724308083131,0.04467674,2628.5,2628.4,1.304]
[1724308083445,9.51,2628.8,2628.4,1.304]
[1724308083620,0.04467305,2628.5,2628.4,1.304]
[1724308083821,9.51,2628.8,2628.4,1.304]
[1724308084030,0.04467674,2628.5,2628.4,1.304]
[1724308084321,0.04467305,2628.5,2628.4,1.304]
[1724308084545,11.585373,2628.8,2628.4,1.304]
[1724308084846,0.12139101,2628.7,2628.4,1.304]
[1724308085148,9.275,2628.6,2628.2,1.304]
[1724308085443,0.04466568,2628.5,2628.2,1.304]
[1724308088997,9.5967,2628.4,2628.0,1.304]
[1724308089331,0.04441139,2628.3,2628.0,1.304]
[1724308094432,0.04441139,2628.3,2628.2,1.304]
[1724308096802,7.44,2628.7,2628.2,4.304]
[1724308097002,7.44,2628.7,2628.4,1.304]
[1724308097231,0.04378053,2628.6,2628.4,1.304]
[1724308100869,16.9547,2629.0,2628.4,1.304]
[1724308101046,0.04380187,2628.5,2628.4,3.0]
[1724308101250,16.9547,2629.0,2628.4,3.55]
[1724308101448,0.04385238,2628.5,2628.4,3.55]
[1724308101647,16.9547,2629.0,2628.4,3.55]
[1724308101822,0.04384941,2628.5,2628.4,3.55]
[1724308102024,0.07668623,2628.9,2628.4,5.3247076]
[1724308102225,0.04387466,2628.5,2628.4,6.6287076]
[1724308102439,0.07668623,2628.9,2628.4,4.854]
[1724308102646,0.04387466,2628.5,2628.4,4.854]
[1724308102827,16.9547,2629.0,2628.4,4.854]
[1724308103027,0.04387466,2628.5,2628.4,4.854]
[1724308103951,16.9547,2629.0,2628.4,4.854]
[1724308104350,9.33653173,2628.9,2628.4,4.854]
[1724308104567,9.33653173,2628.9,2628.5,3.0]
[1724308104859,9.33653173,2628.9,2628.4,1.854]
[1724308108560,9.33653173,2628.9,2628.4,2.33007379]
[1724308109340,9.33653173,2628.9,2628.5,0.47607379]
[1724308110477,9.33653173,2628.9,2628.4,1.854]
[1724308110768,9.33653173,2628.9,2628.5,0.47605759]
[1724308110929,9.33653173,2628.9,2628.6,0.47605217]
[1724308111487,9.33653173,2628.9,2628.7,0.47604501]
[1724308111634,9.33653173,2628.9,2628.4,2.61567202]
[1724308111971,9.33653173,2628.9,2628.5,3.47604558]
[1724308112282,9.33653173,2628.9,2628.6,0.47604558]
[1724308112483,9.33653173,2628.9,2628.7,0.47604558]
[1724308112652,9.33653173,2628.9,2628.4,1.854]
[1724308112851,9.33653173,2628.9,2628.5,0.47604617]
[1724308113034,9.33653173,2628.9,2628.6,0.47604617]
[1724308113234,9.33653173,2628.9,2628.7,0.47604617]
[1724308113565,11.29369557,2628.9,2628.4,1.854]
[1724308113778,9.33653173,2628.9,2628.5,0.47604322]
[1724308113976,9.33653173,2628.9,2628.4,1.854]
[1724308114436,9.33653173,2628.9,2628.5,0.47604405]
[1724308114636,9.33653173,2628.9,2628.6,0.47604405]
[1724308114962,10.53489487,2628.9,2628.7,0.47604405]
[1724308115133,9.33653173,2628.9,2628.4,1.854]
[1724308115329,10.53489487,2628.9,2628.5,0.47605197]
[1724308115569,10.53489487,2628.9,2628.6,0.47605197]
[1724308115755,10.53489487,2628.9,2628.7,0.47605552]
[1724308116071,10.53489487,2628.9,2628.4,1.854]
[1724308116270,7.38384671,2628.9,2628.5,0.47606672]
[1724308116470,7.38384671,2628.9,2628.4,0.47610902]
[1724308116471,10.77226314,2628.6,2628.4,0.47610902]
[1724308116657,10.77226314,2628.6,2628.0,1.304]
[1724308116860,10.77226314,2628.6,2628.1,0.47611289]
[1724308116861,0.04395475,2628.5,2628.1,0.47611289]
[1724308117046,0.04395475,2628.5,2628.2,0.47611289]
[1724308117375,0.04395475,2628.5,2628.3,0.47611289]
[1724308117547,0.04395475,2628.5,2628.4,0.47611289]
[1724308118488,1.50599954,2628.5,2628.4,0.47611289]
[1724308122986,1.50599954,2628.5,2628.4,0.47612027]
[1724308123654,0.04395475,2628.5,2628.4,0.47612027]
[1724308124093,0.04395475,2628.5,2628.4,0.47611719]
[1724308124477,0.04395475,2628.5,2628.4,0.47611706]
[1724308124700,1.24231789,2628.5,2628.0,1.304]
[1724308124869,1.24231789,2628.5,2628.1,0.47612132]
[1724308125080,0.04395475,2628.5,2628.2,0.47612132]
[1724308125285,1.24231789,2628.5,2628.3,0.47612132]
[1724308125483,0.04395475,2628.5,2628.1,3.0]
[1724308125685,1.24231789,2628.5,2628.2,0.47611998]
[1724308125887,0.04395475,2628.5,2628.3,0.47611998]
[1724308126085,1.24231789,2628.5,2628.0,4.304]
[1724308126271,0.04395475,2628.5,2628.1,0.47611566]
[1724308126472,0.04395475,2628.5,2628.2,0.47611566]
[1724308126681,0.04395475,2628.5,2628.3,0.47611566]
[1724308126868,0.04395475,2628.5,2628.0,1.304]
[1724308127070,0.04395475,2628.5,2628.1,0.47612015]
[1724308127309,0.04395475,2628.5,2628.2,0.47612015]
[1724308127511,0.04395475,2628.5,2628.3,0.47612015]
[1724308127714,0.04395475,2628.5,2628.0,1.304]
[1724308129295,0.04395475,2628.5,2628.1,0.59515064]
[1724308129474,0.04395475,2628.5,2628.2,0.59515064]
[1724308129678,0.04395475,2628.5,2628.3,0.59515064]
[1724308130010,0.04395475,2628.5,2628.0,1.304]
[1724308130011,10.38900412,2628.5,2628.0,1.304]
[1724308130195,9.07,2628.3,2628.1,0.59517511]
[1724308130403,9.07,2628.3,2628.2,0.59517511]
[1724308130700,9.3752,2628.2,2627.8,4.304]
[1724308130873,9.3752,2628.2,2627.9,0.59522692]
[1724308131208,9.3752,2628.2,2628.0,0.59522692]
[1724308131418,9.3752,2628.2,2628.0,0.59522073]
[1724308131573,10.98333165,2628.2,2627.6,4.304]
[1724308132282,10.98333165,2628.2,2627.6,1.304]
[1724308132475,0.07668623,2628.1,2627.6,1.304]
[1724308133737,9.9766,2628.0,2627.6,1.304]
[1724308134139,9.9766,2628.0,2627.2,0.79608349]
[1724308134140,9.9766,2627.8,2627.2,0.79608349]
[1724308134437,0.04345363,2627.7,2627.3,2.62714702]
[1724308134662,0.04345363,2627.7,2627.1,6.58718042]
[1724308134663,0.04345363,2627.7,2627.5,1.304]
[1724308134951,9.9766,2627.8,2627.5,1.304]
[1724308135230,0.0434396,2627.6,2627.5,1.304]
[1724308135438,11.83410732,2627.8,2627.5,1.304]
[1724308135643,0.04187059,2627.6,2627.5,1.304]
[1724308135851,9.9766,2627.8,2627.5,1.304]
[1724308136146,0.04158292,2627.6,2627.5,1.304]
[1724308136305,9.9766,2627.8,2627.5,1.304]
[1724308136822,0.04159695,2627.7,2627.5,0.511018]
[1724308136985,0.04159695,2627.7,2627.6,1.854]
[1724308137192,7.44,2628.0,2627.6,1.854]
[1724308137393,0.04159464,2627.9,2627.8,1.304]
[1724308137636,0.04159464,2627.9,2627.4,9.0058]
[1724308137789,0.04159464,2627.9,2627.5,1.74140635]
[1724308138008,9.7231,2628.2,2627.8,1.304]
[1724308140227,9.7231,2628.2,2627.6,1.854]
[1724308140552,9.7231,2628.2,2627.6,1.304]
[1724308140553,9.1626,2628.0,2627.6,1.304]
[1724308149455,0.04170664,2627.9,2627.6,1.304]
[1724308151471,0.04170664,2627.9,2627.8,1.304]
[1724308151848,9.2805,2628.3,2627.8,1.304]
[1724308152085,0.04170664,2627.9,2627.8,1.304]
[1724308152272,9.2805,2628.3,2627.8,1.304]
[1724308152466,0.04170664,2627.9,2627.6,12.83064]
[1724308152791,17.1204,2628.5,2627.8,1.304]
[1724308153083,17.1204,2628.5,2628.1,1.304]
[1724308155821,10.42436314,2628.7,2628.3,1.304]
[1724308155970,9.226,2628.7,2628.3,1.304]
[1724308158799,9.226,2628.7,2628.1,4.304]
[1724308158970,9.226,2628.7,2628.1,1.304]
[1724308159168,9.226,2628.7,2628.2,3.0]
[1724308159382,9.226,2628.7,2628.1,1.304]
[1724308159586,10.42436314,2628.7,2628.1,1.304]
[1724308159919,9.226,2628.7,2628.1,1.304]
[1724308160107,10.42436314,2628.7,2628.1,1.304]
[1724308160395,9.226,2628.7,2628.1,1.304]
[1724308160595,9.226,2628.7,2628.1,2.70009]
[1724308160779,9.226,2628.7,2628.2,3.0]
[1724308164403,0.04214869,2628.6,2628.2,3.0]
[1724308165604,0.04214869,2628.6,2628.1,1.304]
[1724308165792,0.04214869,2628.6,2628.3,1.304]
[1724308167883,0.04214869,2628.6,2628.1,1.304]
[1724308168371,0.04214869,2628.6,2628.3,1.304]
[1724308171433,0.04214869,2628.6,2628.5,1.304]
[1724308171629,1.19836314,2628.9,2628.5,1.304]
[1724308171925,12.82132,2629.0,2628.5,1.304]
[1724308171926,0.04241578,2628.8,2628.5,1.304]
[1724308172342,14.01968314,2629.0,2628.5,1.304]
[1724308172513,0.04240544,2628.7,2628.5,1.304]
[1724308172690,10.21586314,2629.0,2628.5,1.304]
[1724308172896,8.63836314,2629.1,2628.8,1.304]
[1724308173120,7.44,2629.1,2628.8,1.304]
[1724308173484,7.44,2629.1,2628.6,1.854]
[1724308173704,7.44,2629.1,2628.6,1.304]
[1724308174379,7.44,2629.1,2628.6,1.70099114]
[1724308174900,10.68526314,2629.2,2628.6,1.70099114]
[1724308175305,10.68526314,2629.2,2628.5,0.55]
[1724308175306,9.7434,2629.0,2628.5,0.55]
[1724308179409,0.04260534,2628.9,2628.5,0.55]
[1724308180142,0.11929157,2628.9,2628.4,3.0]
[1724308180436,0.11929157,2628.9,2628.4,4.304]
[1724308180622,1.60577604,2628.9,2628.5,3.0]
[1724308180821,1.60577604,2628.9,2628.4,1.304]
[1724308181731,9.371,2628.8,2628.4,1.304]
[1724308181919,9.41371772,2628.8,2628.4,1.304]
[1724308183056,9.41371772,2628.8,2628.2,3.0]
[1724308183057,0.07668623,2628.7,2628.2,4.304]
[1724308183213,9.5163,2628.6,2628.2,4.304]
[1724308183535,9.55898968,2628.6,2628.3,3.0]
[1724308183713,9.55898968,2628.6,2628.2,1.304]
[1724308188641,9.55898968,2628.6,2628.2,1.78008438]
[1724308188959,9.55898968,2628.6,2628.2,1.304]
[1724308189110,11.00429267,2628.6,2628.2,1.78008438]
[1724308189307,11.00429267,2628.6,2628.2,1.304]
[1724308189548,11.00429267,2628.6,2628.2,1.78008438]
[1724308189747,11.00429267,2628.6,2628.2,1.304]
[1724308190047,11.00429267,2628.6,2628.2,1.78008438]
[1724308190351,11.00429267,2628.6,2628.2,1.304]
[1724308190647,11.00429267,2628.6,2628.2,1.78008438]
[1724308190874,11.00429267,2628.6,2628.2,1.304]
[1724308191050,11.00429267,2628.6,2628.2,1.7800995]
[1724308191229,9.55898968,2628.6,2628.3,0.4760995]
[1724308191868,9.55898968,2628.6,2628.4,0.5951088]
[1724308192008,9.55898968,2628.6,2628.5,0.5951088]
[1724308193312,10.74372698,2628.6,2628.5,0.5951088]
[1724308194207,10.74372698,2628.6,2628.2,1.304]
[1724308194432,10.74372698,2628.6,2628.3,0.59511349]
[1724308194631,10.74372698,2628.6,2628.2,1.304]
[1724308194839,0.07668623,2628.5,2628.0,4.304]
[1724308195191,0.04248472,2628.4,2628.0,4.304]
[1724308195331,0.04248472,2628.4,2628.0,1.304]
[1724308197385,0.04248472,2628.4,2628.2,1.304]
[1724308198135,9.1671,2628.7,2628.2,1.304]
[1724308198301,0.04240496,2628.3,2628.2,1.304]
[1724308198449,10.36546314,2628.7,2628.2,1.304]
[1724308198654,10.36546314,2628.7,2628.4,1.304]
[1724308198887,0.04244702,2628.6,2628.4,1.304]
[1724308202044,0.04244702,2628.6,2628.5,13.51065]
[1724308202253,0.04244702,2628.6,2628.5,14.06065]
[1724308202449,0.04244702,2628.6,2628.5,18.38311943]
[1724308202643,0.04244702,2628.6,2628.5,23.095552]
[1724308202977,0.04244702,2628.6,2628.5,21.11187327]
[1724308203181,0.04244702,2628.6,2628.5,19.78941629]
[1724308203679,0.04244702,2628.6,2628.5,15.98496629]
[1724308204248,0.04244702,2628.6,2628.5,23.0955388]
[1724308204881,0.04244702,2628.6,2628.5,19.2910888]
[1724308205081,0.04244702,2628.6,2628.5,17.30743688]
[1724308205650,0.04244702,2628.6,2628.5,15.98496629]
[1724308206356,0.04244702,2628.6,2628.5,17.30744679]
[1724308206760,0.04244702,2628.6,2628.5,15.98496629]
[1724308210849,0.04244702,2628.6,2628.5,6.27876629]
[1724308213659,0.04244702,2628.6,2628.5,3.55]
[1724308213974,0.04244702,2628.6,2628.5,0.55]
[1724308214175,0.04244702,2628.6,2628.5,3.55]
[1724308215502,0.04244702,2628.6,2628.5,0.55]
[1724308215666,0.04244702,2628.6,2628.5,3.55]
[1724308215880,0.04244702,2628.6,2628.5,0.55]
[1724308217357,9.1618,2628.9,2628.5,1.61425544]
[1724308217671,0.04264191,2628.8,2628.6,1.854]
[1724308217871,0.04264191,2628.8,2628.6,4.854]
[1724308218691,10.36016314,2629.1,2628.6,4.854]
[1724308218993,0.0426497,2629.0,2628.8,1.304]
[1724308222466,0.0426497,2629.0,2628.9,0.55]
[1724308222674,8.63836314,2629.5,2628.9,8.59830696]
[1724308222902,0.04273607,2629.4,2629.2,1.304]
[1724308223791,0.04273607,2629.4,2629.3,0.55]
[1724308225327,0.04273607,2629.4,2629.3,1.0354]
[1724308228608,9.9729,2629.8,2629.3,1.0354]
[1724308228806,9.9729,2629.8,2629.3,0.55]
[1724308228999,3.80258,2629.8,2629.3,0.55]
[1724308229193,9.8151,2629.7,2629.3,0.55]
[1724308230716,9.8151,2629.7,2629.4,1.304]
[1724308232758,9.8151,2629.7,2629.3,0.55]
[1724308233055,11.54061,2629.7,2629.3,3.55]
[1724308233259,11.54061,2629.7,2629.3,0.55]
[1724308233653,11.54061,2629.7,2629.1,3.0]
[1724308233834,5.52829,2629.7,2629.1,1.304]
[1724308234023,9.6468,2629.5,2629.1,1.304]
[1724308234655,9.6468,2629.5,2628.9,1.304]
[1724308236583,9.6468,2629.5,2629.1,1.304]
[1724308237261,9.6468,2629.5,2629.0,3.0]
[1724308237464,9.0305,2629.3,2628.7,0.35550037]
[1724308237667,9.0305,2629.3,2628.8,1.304]
[1724308242586,0.04330947,2629.2,2628.8,1.304]
[1724308242940,9.0305,2629.3,2628.8,1.304]
[1724308243164,0.04330947,2629.2,2628.8,1.304]
[1724308243352,9.0305,2629.3,2628.8,1.304]
[1724308243559,0.04330947,2629.2,2628.8,1.304]
[1724308243782,9.0305,2629.3,2628.8,1.304]
[1724308243987,0.94635579,2629.2,2628.8,1.304]
[1724308244150,9.06,2629.1,2628.8,1.3024453]
[1724308244352,0.04328145,2629.0,2628.8,1.3024453]
[1724308245289,9.06,2628.9,2628.8,1.3024453]
[1724308245599,0.04326744,2628.9,2628.8,1.304]
[1724308245953,9.06,2629.1,2628.8,1.304]
[1724308246297,0.04317028,2629.0,2628.8,1.304]
[1724308251051,9.4755,2628.9,2628.6,3.35549876]
[1724308251206,0.04317028,2629.0,2628.4,0.35549876]
[1724308251207,9.4755,2628.7,2628.4,0.35549876]
[1724308251407,9.4755,2628.7,2628.3,1.304]
[1724308251608,9.4755,2628.7,2628.3,1.65949876]
[1724308251609,0.04283124,2628.6,2628.3,1.65949876]
[1724308251807,0.04283124,2628.6,2628.3,1.304]
[1724308252055,9.4755,2628.7,2628.3,1.304]
[1724308252541,9.4755,2628.5,2628.3,1.304]
[1724308252741,0.04265661,2628.4,2628.3,1.304]
[1724308252941,0.04265661,2628.4,2628.3,1.854]
[1724308253551,9.4755,2628.5,2628.3,1.854]
[1724308253923,9.4755,2628.5,2628.4,0.47607823]
[1724308254253,9.51810996,2628.5,2628.4,0.47607823]
[1724308254656,10.56467596,2628.5,2628.4,0.47607823]
[1724308254856,10.56467596,2628.5,2628.2,0.47607823]
[1724308255020,9.51810996,2628.5,2628.3,1.78007823]
[1724308255243,9.51810996,2628.5,2628.3,1.304]
[1724308255753,9.51810996,2628.5,2628.3,1.78007823]
[1724308255985,9.51810996,2628.5,2628.3,1.304]
[1724308256958,9.51810996,2628.5,2628.3,1.78007823]
[1724308257156,9.51810996,2628.5,2628.3,1.304]
[1724308259172,0.04260996,2628.5,2628.3,1.304]
[1724308259395,9.8606,2628.7,2628.3,1.304]
[1724308259665,0.04232567,2628.6,2628.3,1.304]
[1724308261053,0.04232567,2628.6,2628.5,1.304]
[1724308261275,0.04232567,2628.6,2628.5,5.10845]
[1724308261456,9.3161,2629.1,2628.6,9.0933]
[1724308261768,9.3161,2629.1,2628.9,1.304]
[1724308261972,7.44,2629.4,2628.9,1.304]
[1724308261973,9.3161,2629.3,2628.9,1.304]
[1724308263688,12.9683,2629.7,2628.9,2.114815]
[1724308263854,9.3265,2629.6,2629.3,1.304]
[1724308264886,7.44,2629.7,2629.3,1.304]
[1724308266587,7.44,2629.7,2629.1,3.0]
[1724308266788,7.44,2629.7,2629.2,2.26338]
[1724308266992,9.5572,2629.8,2629.2,2.26338]
[1724308271385,9.5572,2629.8,2629.2,0.55]
[1724308272619,0.04239485,2629.7,2629.2,0.55]
[1724308274490,0.04239485,2629.7,2629.1,3.0]
[1724308274491,9.0368,2629.6,2629.1,3.0]
[1724308274691,9.0368,2629.6,2628.9,3.0]
[1724308274946,9.0368,2629.6,2629.0,0.55]
[1724308274947,0.04281667,2629.5,2629.0,0.55]
[1724308276883,9.7828,2629.4,2629.0,0.55]
[1724308277307,0.0429049,2629.3,2628.9,0.55]
[1724308277726,9.7828,2629.4,2628.9,0.55]
[1724308278087,0.0429049,2629.3,2628.9,0.55]
[1724308278347,0.0429049,2629.3,2628.8,3.0]
[1724308280427,0.0429049,2629.3,2629.0,9.9626]
[1724308280593,0.0429049,2629.3,2629.1,3.0]
[1724308280791,9.1411,2629.6,2629.1,3.0]
[1724308281032,0.95704292,2629.5,2628.9,3.0]
[1724308283040,0.95704292,2629.5,2628.9,6.80386]
[1724308283577,9.7682,2629.4,2628.9,3.0]
[1724308283875,9.7682,2629.4,2628.7,4.50416]
[1724308284043,9.0367,2629.2,2628.8,0.55]
[1724308284240,9.0367,2629.2,2628.6,4.35429]
[1724308284464,0.04281625,2629.1,2628.6,4.35429]
[1724308284678,0.04281625,2629.1,2628.6,0.55]
[1724308284886,9.0367,2629.0,2628.5,4.35437]
[1724308285084,9.0367,2629.3,2628.6,13.46418]
[1724308285384,9.0367,2629.3,2628.6,9.6599]
[1724308285523,0.04277466,2629.2,2628.7,3.0]
[1724308286477,9.0367,2629.3,2628.8,1.301]
[1724308286633,0.90367,2629.2,2628.8,1.301]
[1724308286831,0.04277466,2629.2,2629.0,1.301]
[1724308287259,9.0367,2629.3,2629.0,1.301]
[1724308287772,0.04274939,2629.2,2629.0,1.301]
[1724308287971,9.0367,2629.3,2629.0,1.301]
[1724308288294,0.04274939,2629.2,2629.0,1.301]
[1724308288681,17.0207,2629.5,2629.0,11.875698]
[1724308288875,17.0207,2629.5,2629.1,3.0]
[1724308290790,9.5807,2629.5,2629.1,3.0]
[1724308292489,9.5807,2629.5,2629.0,1.301]
[1724308297235,13.38375,2629.5,2629.0,1.301]
[1724308297436,1.718662,2629.4,2629.0,1.301]
[1724308297613,9.5807,2629.5,2629.0,1.301]
[1724308298227,13.38378,2629.5,2628.8,4.301]
[1724308299166,3.80316,2629.4,2628.8,4.301]
[1724308299449,10.071316,2629.3,2628.8,1.301]
[1724308299613,9.691,2629.3,2628.8,1.301]
[1724308301811,13.60075,2629.2,2628.6,4.301]
[1724308302012,11.157375,2629.1,2628.6,4.301]
[1724308302727,0.04271633,2629.0,2628.6,4.301]
[1724308304239,9.1133,2628.9,2628.6,4.301]
[1724308304781,0.04268831,2628.8,2628.6,4.301]
[1724308306290,0.04268831,2628.8,2628.4,4.301]
[1724308307276,0.04268831,2628.8,2628.6,1.301]
[1724308311542,0.04268831,2628.8,2628.4,4.301]
[1724308312860,0.04268831,2628.8,2628.4,1.301]
[1724308314688,0.04268831,2628.8,2628.5,0.59505999]
[1724308314900,0.04268831,2628.8,2628.5,0.3553951]
[1724308315591,0.04268831,2628.8,2628.4,1.301]
[1724308317470,0.04268831,2628.8,2628.5,0.47605385]
[1724308317695,0.04268831,2628.8,2628.6,0.47605385]
[1724308317870,0.04268831,2628.8,2628.5,0.47605678]
[1724308318079,0.04268831,2628.8,2628.6,0.47605828]
[1724308318394,0.04268831,2628.8,2628.4,1.301]
[1724308318596,0.04268831,2628.8,2628.4,3.096416]
[1724308318812,0.04268831,2628.8,2628.5,3.0]
[1724308319914,9.4713,2628.7,2628.5,3.0]
[1724308320097,9.4713,2628.7,2628.4,1.301]
[1724308320412,0.04227673,2628.6,2628.4,1.301]
[1724308322498,9.6365,2628.4,2627.8,0.79608349]
[1724308322686,9.6365,2628.4,2627.9,4.0]
[1724308322898,0.04202236,2628.3,2628.0,1.301]
[1724308324795,9.6365,2628.2,2627.9,3.0]
[1724308324992,0.04195385,2628.1,2627.8,1.301]
[1724308329506,9.0623,2628.0,2627.6,3.0]
[1724308329710,9.0623,2628.0,2627.7,1.301]
[1724308329932,0.041764,2627.9,2627.7,1.301]
[1724308331552,0.041764,2627.9,2627.7,11.798788]
[1724308331894,9.0623,2628.3,2627.7,15.604288]
[1724308332025,9.0623,2628.3,2628.0,1.301]
[1724308332644,0.04176054,2628.2,2628.0,1.301]
[1724308332845,9.0623,2628.3,2628.0,1.301]
[1724308333168,0.04176054,2628.2,2628.0,1.301]
[1724308333472,9.0623,2628.3,2628.0,1.301]
[1724308333686,0.04174568,2628.1,2628.0,1.301]
[1724308334057,9.0623,2628.3,2627.8,4.301]
[1724308334264,0.04174651,2628.1,2627.8,1.301]
[1724308334573,0.90623,2628.2,2627.8,1.301]
[1724308334741,9.0623,2628.3,2627.8,1.301]
[1724308334742,0.04173249,2628.0,2627.8,1.301]
[1724308334950,9.0623,2628.3,2627.8,1.301]
[1724308335136,0.04171847,2627.9,2627.8,1.301]
[1724308335537,9.0623,2628.3,2627.8,1.301]
[1724308335761,0.04171847,2627.9,2627.8,1.301]
[1724308335963,9.0623,2628.3,2627.8,1.301]
[1724308336185,0.04171847,2627.9,2627.8,1.301]
[1724308336369,9.0623,2628.3,2627.8,1.301]
[1724308336577,0.04171847,2627.9,2627.8,1.301]
[1724308336937,9.0623,2628.3,2627.8,1.301]
[1724308337183,0.04171847,2627.9,2627.8,1.301]
[1724308337340,9.0623,2628.3,2627.8,1.301]
[1724308337546,0.04171847,2627.9,2627.8,1.301]
[1724308337766,9.0623,2628.3,2627.8,1.301]
[1724308338379,0.04176054,2628.2,2627.8,1.301]
[1724308338741,9.0623,2628.3,2627.8,1.301]
[1724308338940,0.04174651,2628.1,2627.8,1.301]
[1724308339157,9.0623,2628.3,2627.8,1.301]
[1724308339355,0.04173249,2628.0,2627.8,1.301]
[1724308339648,0.04171847,2627.9,2627.8,1.301]
[1724308339977,10.348977,2628.3,2627.8,1.301]
[1724308340516,0.04176054,2628.2,2627.8,1.301]
[1724308340672,10.348977,2628.3,2627.8,1.301]
[1724308340845,0.04174651,2628.1,2627.8,1.301]
[1724308341222,10.348977,2628.3,2627.8,1.301]
[1724308341382,0.04173249,2628.0,2627.8,1.301]
[1724308341578,1.0348977,2628.2,2627.8,1.301]
[1724308341757,0.04171847,2627.9,2627.8,1.301]
[1724308341983,9.3776,2628.0,2627.8,1.301]
[1724308342179,0.0417741,2627.9,2627.8,1.301]
[1724308342847,9.9183,2627.8,2627.7,3.0]
[1724308343055,9.96006008,2627.8,2627.5,4.301]
[1724308344475,9.96006008,2627.8,2627.5,1.301]
[1724308344661,9.96006008,2627.8,2627.6,3.0]
[1724308344847,9.96006008,2627.8,2627.5,1.301]
[1724308345072,9.48188623,2627.7,2627.0,1.301]
[1724308345383,9.44662747,2627.7,2627.4,1.301]
[1724308348015,10.87142382,2627.7,2627.4,1.301]
[1724308348601,10.87142382,2627.7,2627.2,1.301]
[1724308351300,9.91848623,2627.6,2627.2,1.301]
[1724308351487,9.91848623,2627.6,2627.0,1.301]
[1724308351686,0.0411212,2627.5,2627.0,1.301]
[1724308351916,9.8418,2627.4,2627.0,1.301]
[1724308352219,9.88290717,2627.4,2627.0,1.301]
[1724308353077,9.88290717,2627.4,2627.2,1.301]
[1724308353283,0.04110717,2627.4,2627.2,1.301]
[1724308353482,9.9492,2627.6,2627.2,1.301]
[1724308353707,9.9492,2627.6,2627.4,1.301]
[1724308355598,9.9492,2627.6,2627.2,1.301]
[1724308358305,11.324668,2627.6,2627.2,1.301]
[1724308358618,9.0152,2627.5,2627.0,4.301]
[1724308358917,9.0152,2627.5,2627.0,1.301]
[1724308359121,10.4348428,2627.5,2627.0,1.301]
[1724308360822,14.2408028,2627.5,2627.0,1.301]
[1724308361019,9.0539,2627.3,2626.8,1.301]
[1724308361235,10.4895189,2627.3,2626.8,1.301]
[1724308362710,0.04088181,2627.2,2626.8,1.301]
[1724308362910,10.4895189,2627.3,2626.8,1.301]
[1724308363082,0.04086778,2627.1,2626.7,4.301]
[1724308363285,9.0539,2627.0,2626.7,1.301]
[1724308363517,0.04071825,2626.9,2626.7,1.301]
[1724308366271,0.04071825,2626.9,2626.5,4.301]
[1724308366389,0.04071825,2626.9,2626.5,1.301]
[1724308366747,9.7405,2626.8,2626.4,4.301]
[1724308366887,9.78115361,2626.8,2626.4,4.301]
[1724308369943,9.78115361,2626.8,2626.4,1.301]
[1724308370305,9.78115361,2626.8,2626.6,1.301]
[1724308371200,0.04065361,2626.8,2626.6,1.301]
[1724308371414,9.9544,2627.1,2626.6,5.918967]
[1724308371747,9.9544,2627.1,2626.8,1.301]
[1724308372511,9.9544,2627.1,2626.6,1.301]
[1724308373549,13.76095,2627.1,2626.6,1.301]
[1724308373707,9.0261,2627.0,2626.6,1.301]
[1724308374808,9.0261,2627.0,2626.7,0.5954785]
[1724308375029,9.0261,2626.8,2626.6,1.301]
[1724308375220,9.0261,2626.8,2626.7,0.59549406]
[1724308377407,9.9611,2627.1,2626.7,0.59549406]